bitfinex-derivatives/quotes_ETHF0:USTF0_20250116
["timestamp","ask_amount","ask_price","bid_price","bid_amount"]
[1737000183903,0.6192,3367.6,3367.2,0.6319]
[1737000184103,3.2078,3367.7,3367.4,0.594]
[1737000184305,0.594,3367.5,3367.2,1.22595]
[1737000184510,3.2078,3367.7,3367.2,0.6319]
[1737000184704,0.59403,3367.3,3367.2,0.6319]
[1737000185410,3.2078,3367.7,3367.2,0.6319]
[1737000185611,0.59403,3367.4,3367.2,0.6319]
[1737000187505,3.2078,3367.6,3367.2,0.6319]
[1737000187704,0.59403,3367.4,3367.2,0.6319]
[1737000187909,0.639,3367.3,3367.2,0.6319]
[1737000190007,0.639,3367.3,3367.2,1.22595]
[1737000190407,0.639,3367.3,3367.2,0.6319]
[1737000190914,1.23303,3367.3,3367.2,0.6319]
[1737000192114,0.639,3367.3,3367.2,0.6319]
[1737000194412,1.23303,3367.3,3367.2,0.6319]
[1737000195617,0.59405,3367.2,3367.1,0.1648]
[1737000195817,0.59405,3367.2,3367.1,0.2099]
[1737000199423,0.639,3367.3,3367.1,0.2099]
[1737000199725,0.639,3367.3,3367.1,0.80395]
[1737000200115,1.23303,3367.3,3367.1,0.80395]
[1737000200717,1.23303,3367.3,3367.1,0.2099]
[1737000200923,0.59405,3367.2,3367.1,0.2099]
[1737000201122,0.639,3367.3,3367.1,0.80396]
[1737000201322,1.23303,3367.3,3367.1,0.80396]
[1737000201519,0.6253,3367.7,3367.1,0.2099]
[1737000201919,0.59399,3367.6,3367.4,0.59401]
[1737000202114,0.6253,3367.7,3367.3,2.34842089]
[1737000202417,0.59396,3367.8,3367.5,0.59398]
[1737000202616,0.59396,3367.8,3367.6,0.6213]
[1737000202816,1.2509,3367.9,3367.6,0.6213]
[1737000203120,0.59396,3367.7,3367.6,0.6213]
[1737000204627,1.2509,3367.9,3367.1,0.2099]
[1737000204827,0.59403,3367.4,3367.2,0.59405]
[1737000205021,3.59932089,3367.9,3367.1,0.8068]
[1737000205227,0.59405,3367.2,3367.1,0.8068]
[1737000205523,0.59405,3367.2,3367.1,2.0128]
[1737000205719,0.59405,3367.2,3367.1,0.8068]
[1737000205922,3.80185,3367.2,3367.1,0.2099]
[1737000206128,0.59417,3366.5,3366.4,3.2078]
[1737000206332,0.59421,3366.3,3366.2,0.5969]
[1737000206827,0.5942,3366.4,3366.2,0.5969]
[1737000207624,3.2078,3366.6,3366.2,0.5969]
[1737000207826,0.59418,3366.5,3366.2,0.5969]
[1737000208332,3.2078,3366.6,3366.2,0.5969]
[1737000208630,0.5942,3366.4,3366.2,0.5969]
[1737000209731,1.24278,3366.5,3366.2,0.5969]
[1737000209934,0.6486,3366.5,3366.2,0.5969]
[1737000210232,0.5942,3366.4,3366.2,0.5969]
[1737000210432,0.6486,3366.5,3366.2,0.5969]
[1737000210730,1.24278,3366.5,3366.2,0.5969]
[1737000212033,1.24278,3366.5,3366.3,40.8]
[1737000212430,0.6486,3366.5,3366.3,40.8]
[1737000212629,0.59419,3366.4,3366.3,40.8]
[1737000212933,1.24278,3366.5,3366.3,40.8]
[1737000214330,0.59419,3366.4,3366.3,40.8]
[1737000214836,1.24278,3366.5,3366.3,40.8]
[1737000215833,0.6486,3366.5,3366.3,40.8]
[1737000216645,0.59419,3366.4,3366.3,40.8]
[1737000216935,0.59423,3366.2,3366.1,1.207]
[1737000217237,0.59428,3365.9,3365.8,3.2078]
[1737000219537,0.59431,3365.7,3365.6,0.6158]
[1737000221637,3.2078,3365.9,3365.6,0.6158]
[1737000222039,0.59425,3366.1,3365.8,0.59428]
[1737000222334,3.2078,3366.3,3365.6,1.2424]
[1737000222536,0.59425,3366.1,3365.9,0.59427]
[1737000222739,0.59425,3366.1,3366.0,0.6135]
[1737000224333,3.2078,3366.3,3365.6,0.6158]
[1737000224534,0.59431,3365.7,3365.6,0.6158]
[1737000225236,1.48557,3366.2,3365.5,3.2078]
[1737000225438,0.59433,3365.6,3365.5,3.2078]
[1737000227436,0.59433,3365.7,3365.5,3.2078]
[1737000228040,0.59433,3365.7,3365.4,1.80136]
[1737000228242,0.59433,3365.7,3365.4,0.59436]
[1737000228544,0.59433,3365.7,3365.4,1.80136]
[1737000228743,0.59428,3365.9,3365.4,1.207]
[1737000228943,0.59433,3365.6,3365.4,1.207]
[1737000229441,0.6058,3365.8,3365.4,1.80136]
[1737000229643,0.59433,3365.7,3365.4,1.80136]
[1737000230044,0.6058,3365.8,3365.4,1.207]
[1737000230246,0.59434,3365.6,3365.4,1.207]
[1737000230448,0.59434,3365.6,3365.5,40.8]
[1737000233045,0.6058,3365.8,3365.5,40.8]
[1737000233448,0.59433,3365.6,3365.5,40.8]
[1737000236450,0.59432,3365.7,3365.5,40.8]
[1737000236851,0.59433,3365.6,3365.5,40.8]
[1737000237151,0.6058,3365.8,3365.5,40.8]
[1737000237451,0.59432,3365.7,3365.5,40.8]
[1737000239247,3.80207,3366.0,3365.7,0.5943]
[1737000239453,3.2078,3366.0,3365.9,0.59428]
[1737000239846,3.2078,3366.0,3365.9,43.18188]
[1737000240551,3.2078,3366.0,3365.9,2.38188]
[1737000241648,0.59419,3366.5,3365.9,1.7876]
[1737000241845,0.59419,3366.5,3366.2,2.94264089]
[1737000242348,3.2078,3366.6,3366.3,0.59421]
[1737000242653,3.80197,3366.6,3366.3,0.59421]
[1737000242847,3.2078,3366.6,3366.2,2.34842089]
[1737000243047,3.2078,3366.6,3366.5,0.59417]
[1737000243346,3.2078,3366.6,3366.5,2.94259089]
[1737000243746,3.2078,3366.6,3366.5,2.34842089]
[1737000244148,3.2078,3366.6,3366.5,2.93632089]
[1737000244448,3.2078,3366.6,3366.5,3.50862089]
[1737000245353,3.2078,3366.6,3366.5,4.10279089]
[1737000246157,3.2078,3366.6,3366.5,3.50862089]
[1737000246354,3.2078,3366.6,3366.5,4.10279089]
[1737000247955,3.2078,3366.6,3366.5,3.50862089]
[1737000248558,3.2078,3366.6,3366.5,4.10279089]
[1737000251155,3.80191,3366.9,3366.6,0.59415]
[1737000251459,3.2078,3366.9,3366.6,0.59415]
[1737000251660,3.80191,3366.9,3366.6,0.59415]
[1737000251863,3.2078,3366.9,3366.6,0.59415]
[1737000252358,0.59412,3366.8,3366.6,0.59415]
[1737000253067,0.59412,3366.8,3366.5,4.10278089]
[1737000253272,0.59412,3366.8,3366.5,3.50862089]
[1737000253563,0.59412,3366.8,3366.6,0.59415]
[1737000254864,0.59414,3366.7,3366.5,4.10278089]
[1737000255963,3.2078,3366.9,3366.5,3.50862089]
[1737000256468,0.59415,3366.7,3366.5,4.10278089]
[1737000258064,3.2078,3366.9,3366.5,3.50862089]
[1737000258270,0.59421,3366.3,3366.2,2.34842089]
[1737000258462,0.59423,3366.2,3366.1,3.2078]
[1737000258662,0.59423,3366.2,3366.0,1.79405]
[1737000258860,0.5769,3366.7,3366.0,0.5833]
[1737000259068,0.59426,3366.0,3365.9,2.34842089]
[1737000259260,0.6007,3366.1,3366.0,0.59426]
[1737000259469,0.6007,3366.1,3365.9,2.94269089]
[1737000260764,1.19495,3366.1,3365.9,2.94269089]
[1737000260964,1.19495,3366.1,3365.9,2.34842089]
[1737000261870,1.19495,3366.1,3365.9,2.94270089]
[1737000262463,0.6007,3366.1,3365.9,2.94270089]
[1737000262670,0.6007,3366.1,3366.0,0.59426]
[1737000262867,0.59423,3366.3,3366.0,0.59426]
[1737000263271,0.59423,3366.3,3366.1,40.8]
[1737000263774,0.5622,3366.4,3366.1,40.8]
[1737000263967,0.59422,3366.3,3366.1,40.8]
[1737000264869,0.5622,3366.4,3366.1,40.8]
[1737000265167,0.59423,3366.2,3366.1,40.8]
[1737000265367,0.59423,3366.2,3365.9,2.94269089]
[1737000265572,0.5622,3366.4,3365.9,0.59428]
[1737000265878,0.59424,3366.2,3366.0,40.8]
[1737000266174,0.59424,3366.2,3366.0,41.39426]
[1737000266873,0.59424,3366.2,3366.0,40.8]
[1737000267372,0.59424,3366.2,3365.9,0.59427]
[1737000267770,0.59424,3366.2,3365.9,41.39427]
[1737000267960,0.5622,3366.4,3365.9,40.8]
[1737000268167,0.59425,3366.1,3365.9,41.39428]
[1737000268962,0.59431,3365.7,3365.4,0.59436]
[1737000269164,0.59436,3365.5,3365.3,0.574]
[1737000269767,0.59437,3365.4,3365.3,0.574]
[1737000269975,0.5617,3365.5,3365.3,0.574]
[1737000270174,1.15606,3365.5,3365.3,0.574]
[1737000270974,0.5617,3365.5,3365.3,0.574]
[1737000271172,0.59437,3365.4,3365.3,0.574]
[1737000271475,3.2078,3365.4,3365.1,1.205]
[1737000271774,0.59441,3365.2,3364.9,1.205]
[1737000272765,0.59441,3365.2,3364.9,1.79945]
[1737000274075,0.6042,3365.6,3365.5,0.59435]
[1737000274270,3.2078,3365.8,3365.5,0.59435]
[1737000274568,3.2078,3365.8,3365.3,2.34842089]
[1737000274776,3.2078,3365.8,3365.6,41.39432]
[1737000275465,3.2078,3365.8,3365.6,40.8]
[1737000275668,3.2078,3365.8,3365.6,41.39433]
[1737000276772,3.2078,3365.8,3365.6,0.59433]
[1737000279079,3.2078,3365.8,3365.4,41.9823]
[1737000279080,3.2078,3365.8,3365.5,0.59433]
[1737000279677,0.59432,3365.7,3365.4,1.77665]
[1737000279868,0.59435,3365.6,3365.4,0.5655]
[1737000280178,0.6014,3365.5,3365.4,0.5655]
[1737000283375,0.6014,3365.5,3365.1,1.206]
[1737000283575,0.59441,3365.2,3365.1,1.206]
[1737000284682,1.1587,3365.4,3365.1,1.206]
[1737000284880,0.59439,3365.3,3365.0,3.2078]
[1737000285081,0.59439,3365.3,3365.0,3.80224]
[1737000285781,0.5944,3365.2,3365.0,3.2078]
[1737000286579,0.59439,3365.3,3365.0,0.59444]
[1737000286986,0.5969,3365.4,3365.1,2.34842089]
[1737000287286,0.5969,3365.4,3365.2,0.5944]
[1737000287480,0.5969,3365.4,3365.1,2.91382089]
[1737000287788,0.5969,3365.4,3365.3,0.59439]
[1737000288680,0.6014,3365.5,3365.2,0.5696]
[1737000288879,0.5733,3366.0,3365.8,0.59429]
[1737000289681,0.5733,3366.0,3365.9,0.59428]
[1737000289984,0.5733,3366.0,3365.7,2.34842089]
[1737000290186,1.16758,3366.0,3365.7,2.94273089]
[1737000290487,0.5943,3365.8,3365.6,0.59433]
[1737000290887,0.59429,3365.9,3365.6,0.59433]
[1737000291382,1.16757,3366.0,3365.7,0.59431]
[1737000292186,0.5733,3366.0,3365.8,0.59429]
[1737000292381,1.16756,3366.0,3365.8,0.59429]
[1737000294185,0.5733,3366.0,3365.8,0.59428]
[1737000294382,1.16756,3366.0,3365.8,0.59428]
[1737000294686,1.16756,3366.0,3365.8,0.5912]
[1737000295086,1.16756,3366.0,3365.8,1.1855]
[1737000295588,1.16756,3366.0,3365.8,0.5912]
[1737000295793,0.59428,3365.9,3365.8,0.5912]
[1737000297483,0.5733,3366.0,3365.8,0.5912]
[1737000297689,1.16757,3366.0,3365.8,1.18549]
[1737000298895,1.16757,3366.0,3365.8,0.5912]
[1737000299393,0.59428,3365.9,3365.8,0.5912]
[1737000301389,0.5733,3366.0,3365.8,0.5912]
[1737000301595,0.59428,3365.9,3365.8,0.5912]
[1737000302094,0.5733,3366.0,3365.5,3.2078]
[1737000302294,0.5944,3365.2,3365.0,3.8037]
[1737000302895,0.59433,3365.6,3365.1,2.94284089]
[1737000303097,0.59438,3365.4,3365.1,2.94284089]
[1737000303895,0.5614,3365.5,3365.1,2.94284089]
[1737000304094,0.59439,3365.3,3365.1,2.94284089]
[1737000304292,3.2078,3365.9,3365.1,2.34842089]
[1737000304591,3.2078,3365.9,3365.4,2.94278089]
[1737000304592,0.59432,3365.7,3365.4,2.94278089]
[1737000304891,0.59432,3365.7,3365.5,0.5642]
[1737000305089,0.59432,3365.7,3365.5,1.137]
[1737000305288,3.813,3365.9,3365.5,1.73133]
[1737000305491,0.59432,3365.7,3365.5,1.137]
[1737000305687,0.59432,3365.7,3365.5,1.73134]
[1737000306495,0.59433,3365.6,3365.5,1.137]
[1737000306787,0.59435,3365.5,3365.4,2.34842089]
[1737000307593,0.5944,3365.2,3365.1,3.56612089]
[1737000307797,0.5944,3365.2,3365.1,0.6054]
[1737000309397,0.59439,3365.3,3365.1,2.95382089]
[1737000309696,0.5944,3365.2,3365.1,2.95382089]
[1737000311594,0.59439,3365.3,3365.1,2.95382089]
[1737000311798,0.5944,3365.2,3365.1,2.95382089]
[1737000312898,0.5944,3365.2,3364.2,16.82406774]
[1737000312899,0.59448,3364.8,3364.6,3.8201]
[1737000313091,1.1717,3365.1,3364.6,4.4301]
[1737000313293,1.1717,3365.1,3364.6,5.6351]
[1737000313490,1.17393,3365.1,3364.8,2.94288089]
[1737000313991,0.5795,3365.1,3364.9,0.59445]
[1737000314202,0.59442,3365.1,3364.9,0.5963]
[1737000314994,0.59442,3365.1,3364.9,1.19075]
[1737000315297,0.5795,3365.4,3364.9,0.5963]
[1737000315498,0.59439,3365.3,3365.1,2.34842089]
[1737000316003,0.59439,3365.3,3365.1,2.94284089]
[1737000316198,0.5795,3365.4,3365.2,0.6092]
[1737000316499,3.80216,3365.5,3365.2,1.20359]
[1737000316704,0.59437,3365.4,3365.2,1.1942]
[1737000317305,0.59432,3365.7,3365.4,0.59437]
[1737000317601,0.59432,3365.7,3365.4,4.14779089]
[1737000318704,3.80209,3365.9,3365.6,0.59432]
[1737000318907,0.5943,3365.8,3365.7,0.5752]
[1737000319096,3.2078,3365.9,3365.4,3.55342089]
[1737000319097,0.59435,3365.5,3365.4,3.55342089]
[1737000320804,0.5527,3365.7,3365.4,3.55342089]
[1737000321003,1.14703,3365.7,3365.4,4.14778089]
[1737000321213,0.59433,3365.7,3365.4,4.14778089]
[1737000322707,3.2078,3365.9,3365.4,3.55342089]
[1737000323010,0.59432,3365.7,3365.4,4.14777089]
[1737000324010,0.59432,3365.7,3365.4,1.79935]
[1737000324308,0.59432,3365.7,3365.4,4.14777089]
[1737000325906,0.59432,3365.7,3365.5,0.59435]
[1737000326302,3.2078,3365.9,3365.5,0.59435]
[1737000326500,9.20368382,3366.2,3365.7,2.34842089]
[1737000326704,9.20368382,3366.2,3366.0,2.34842089]
[1737000326900,14.15616429,3366.3,3366.0,2.34842089]
[1737000326901,3.2078,3366.3,3366.0,2.34842089]
[1737000327310,0.59423,3366.2,3365.8,2.27939]
[1737000327811,0.59425,3366.1,3365.8,1.6851]
[1737000328011,0.59423,3366.2,3365.9,0.59427]
[1737000329113,0.59427,3366.0,3365.8,1.0982]
[1737000329611,0.59426,3366.1,3365.8,1.69249]
[1737000329910,0.59424,3366.2,3365.9,0.59427]
[1737000330114,0.59426,3366.1,3365.8,1.69249]
[1737000331511,0.59426,3366.1,3365.9,0.59428]
[1737000331715,0.59426,3366.1,3365.8,1.69249]
[1737000332413,0.59426,3366.1,3365.8,1.0982]
[1737000332610,0.59423,3366.2,3365.9,0.59427]
[1737000334412,0.59422,3366.3,3366.0,0.59426]
[1737000334715,0.59424,3366.2,3365.9,0.59427]
[1737000335117,0.59424,3366.2,3366.0,0.59426]
[1737000335716,0.59422,3366.3,3366.0,0.59426]
[1737000336415,0.59424,3366.2,3365.9,0.59427]
[1737000336616,4.3933,3366.5,3365.8,1.69249]
[1737000336807,0.59425,3366.1,3365.9,0.59428]
[1737000337005,0.59425,3366.1,3365.8,1.0982]
[1737000337006,0.5754,3366.0,3365.8,1.14219]
[1737000337214,0.5594,3365.9,3365.8,1.14219]
[1737000337721,0.5594,3365.9,3365.8,0.5479]
[1737000338017,0.5594,3365.9,3365.8,1.1422]
[1737000340620,0.59424,3366.2,3365.9,0.59427]
[1737000340813,0.59424,3366.2,3365.9,1.79827]
[1737000341013,0.59424,3366.2,3366.0,0.59426]
[1737000342820,0.59424,3366.2,3365.9,1.204]
[1737000343122,0.59424,3366.2,3365.9,1.79827]
[1737000343324,0.59424,3366.2,3365.9,1.204]
[1737000343523,0.59424,3366.2,3366.0,0.59426]
[1737000344831,1.0119,3366.4,3365.9,1.204]
[1737000345020,1.0119,3366.4,3366.0,2.34842089]
[1737000345223,9.20368382,3366.8,3366.3,2.34842089]
[1737000345528,9.20368382,3366.8,3366.5,0.59416]
[1737000345529,0.59414,3366.7,3366.5,0.59416]
[1737000346326,4.1863,3366.9,3366.4,0.5513]
[1737000346531,4.78041,3366.9,3366.7,0.59413]
[1737000347419,0.59412,3366.8,3366.6,0.59415]
[1737000349224,4.1863,3366.9,3366.4,0.5513]
[1737000349429,4.7804,3366.9,3366.7,0.59413]
[1737000349624,4.1863,3366.9,3366.4,0.5513]
[1737000349831,0.59414,3366.7,3366.5,0.59416]
[1737000350031,4.1863,3366.9,3366.1,3.2078]
[1737000350231,0.59419,3366.4,3366.1,3.2078]
[1737000350531,0.9184,3366.3,3366.1,3.2078]
[1737000350730,0.9184,3366.3,3366.2,0.59423]
[1737000351321,0.9184,3366.3,3366.1,3.80204]
[1737000352833,1.51262,3366.3,3366.1,3.2078]
[1737000353033,1.51262,3366.3,3366.2,1.203]
[1737000355630,1.99392,3366.3,3366.2,1.203]
[1737000357838,0.59428,3365.9,3365.8,40.8]
[1737000358026,0.5943,3365.8,3365.7,3.2078]
[1737000358535,0.5943,3365.8,3365.7,44.0078]
[1737000359339,0.5943,3365.8,3365.7,40.8]
[1737000360031,0.5944,3365.2,3365.1,0.4823]
[1737000360230,0.5944,3365.3,3365.1,0.4823]
[1737000360430,1.4401,3365.7,3365.1,0.4823]
[1737000360431,0.5944,3365.2,3365.1,0.4823]
[1737000361137,0.5944,3365.2,3365.1,40.8]
[1737000362237,0.59438,3365.4,3365.1,40.8]
[1737000362436,0.59438,3365.4,3365.2,0.4762]
[1737000364241,3.2078,3365.6,3365.2,2.82462089]
[1737000364438,3.2078,3365.6,3365.3,0.59438]
[1737000364638,3.80214,3365.6,3365.3,0.59438]
[1737000364943,3.80214,3365.6,3364.9,10.698]
[1737000364944,0.59449,3364.8,3364.4,6.04824955]
[1737000365233,0.59453,3364.5,3364.4,3.2078]
[1737000365439,0.4915,3364.7,3364.4,44.0078]
[1737000365642,0.465,3364.6,3364.4,44.0078]
[1737000365837,0.59453,3364.5,3364.4,44.0078]
[1737000366337,0.59453,3364.5,3364.4,3.2078]
[1737000367234,1.05952,3364.6,3364.4,3.2078]
[1737000368145,0.465,3364.6,3364.4,3.2078]
[1737000368343,1.05952,3364.6,3364.4,3.2078]
[1737000369443,0.465,3364.6,3364.4,3.2078]
[1737000369843,0.465,3364.6,3364.4,3.80233]
[1737000370043,0.465,3364.6,3364.4,3.2078]
[1737000370239,0.465,3364.6,3364.4,3.80234]
[1737000370547,0.465,3364.6,3364.4,3.2078]
[1737000370736,1.05952,3364.6,3364.4,3.2078]
[1737000370932,0.465,3364.6,3364.4,3.2078]
[1737000371738,1.05951,3364.6,3364.4,3.2078]
[1737000371938,1.05951,3364.6,3364.3,2.34842089]
[1737000372340,0.59453,3364.5,3364.2,45.2108]
[1737000372942,0.59453,3364.5,3364.2,44.0078]
[1737000376046,0.465,3364.6,3364.2,44.0078]
[1737000376537,4.26732,3364.6,3364.2,41.39457]
[1737000377541,6.02122089,3364.6,3363.3,2.34842089]
[1737000377744,3.2078,3363.9,3363.3,2.94315089]
[1737000377945,0.4879,3363.8,3363.3,43.74315089]
[1737000378145,0.59467,3363.7,3363.6,2.34842089]
[1737000378446,0.4879,3363.8,3363.6,2.34842089]
[1737000378647,0.59458,3364.2,3363.7,0.59466]
[1737000378846,0.5946,3364.2,3364.0,2.34842089]
[1737000379046,3.6957,3364.3,3363.8,0.4677]
[1737000379047,0.59461,3364.1,3363.8,0.4677]
[1737000380350,0.59461,3364.1,3363.8,0.9439]
[1737000380852,0.59459,3364.2,3363.8,0.9439]
[1737000381256,0.59459,3364.2,3363.8,1.53855]
[1737000381549,3.6957,3364.3,3363.9,0.59463]
[1737000382265,3.6957,3364.3,3363.8,0.9439]
[1737000382467,3.6957,3364.3,3364.0,0.59461]
[1737000383358,4.29026,3364.3,3364.0,0.59461]
[1737000383762,4.29026,3364.3,3364.0,2.94303089]
[1737000384167,0.59458,3364.2,3364.0,2.34842089]
[1737000384466,4.29027,3364.3,3364.0,2.94303089]
[1737000384664,0.59458,3364.2,3364.0,2.34842089]
[1737000386559,3.6957,3364.3,3363.8,0.9439]
[1737000386761,3.6957,3364.3,3363.8,0.4677]
[1737000387265,1.48664,3363.8,3362.7,3.2078]
[1737000387467,5.55622089,3363.9,3362.8,0.4918]
[1737000387468,3.2078,3363.5,3362.8,0.4918]
[1737000387764,0.59476,3363.2,3362.9,0.5948]
[1737000388267,0.59476,3363.2,3362.9,1.7978]
[1737000388468,0.59476,3363.2,3362.9,1.203]
[1737000388864,3.2078,3363.5,3362.9,3.55142089]
[1737000389066,0.59473,3363.4,3363.0,0.59478]
[1737000389259,0.59473,3363.4,3363.1,0.4633]
[1737000390961,0.59474,3363.3,3363.1,0.4633]
[1737000391265,3.2078,3363.5,3362.9,3.55142089]
[1737000391466,0.59478,3363.1,3362.9,1.203]
[1737000392069,3.2078,3363.5,3362.9,1.203]
[1737000392473,0.59478,3363.1,3362.9,1.203]
[1737000393570,3.6837,3363.6,3362.9,1.203]
[1737000393770,0.59479,3363.0,3362.9,1.203]
[1737000393975,0.59478,3363.1,3362.9,1.203]
[1737000394165,0.59479,3363.0,3362.8,4.1628]
[1737000394466,0.59479,3363.0,3362.8,5.3658]
[1737000395864,0.59478,3363.1,3362.8,5.3658]
[1737000396672,0.59477,3363.2,3362.8,5.96063]
[1737000397169,3.6837,3363.6,3362.8,5.3658]
[1737000397372,3.6837,3363.6,3362.8,5.96063]
[1737000397573,0.59477,3363.2,3362.8,5.96063]
[1737000398070,0.59479,3363.1,3362.8,5.3658]
[1737000398271,1.05639,3363.1,3362.8,5.3658]
[1737000398872,1.05639,3363.1,3362.8,5.96062]
[1737000399171,1.05639,3363.1,3362.8,5.96063]
[1737000400475,0.4616,3363.1,3362.8,5.96063]
[1737000400775,0.4616,3363.1,3362.9,0.5948]
[1737000401175,0.59474,3363.3,3362.9,0.5948]
[1737000402578,3.2078,3363.6,3363.2,2.34842089]
[1737000402772,1.48628,3364.6,3362.8,5.3658]
[1737000402773,0.4738,3364.1,3363.5,2.34842089]
[1737000402966,0.4738,3364.1,3363.5,4.02992089]
[1737000403281,1.0684,3364.1,3363.7,0.59465]
[1737000403471,0.59462,3364.0,3363.6,40.8]
[1737000403778,1.06841,3364.1,3363.7,0.59466]
[1737000404279,0.59462,3364.0,3363.8,0.4794]
[1737000404475,0.59461,3364.0,3363.8,0.4794]
[1737000405272,1.0684,3364.1,3363.8,1.07405]
[1737000405678,3.80235,3364.4,3364.1,0.59459]
[1737000405878,3.2078,3364.4,3364.1,0.59459]
[1737000406977,3.2078,3364.4,3363.9,0.4583]
[1737000407283,3.2078,3364.4,3364.3,0.59456]
[1737000407581,0.4612,3364.7,3364.6,0.59451]
[1737000407877,0.4612,3364.7,3364.5,0.59452]
[1737000408380,0.4477,3364.8,3364.6,0.59451]
[1737000408581,0.4477,3364.8,3364.4,0.4632]
[1737000408582,0.4477,3364.8,3364.7,0.59449]
[1737000408776,3.2078,3364.9,3364.8,0.59447]
[1737000408975,3.2078,3364.9,3364.8,1.07747]
[1737000409476,3.2078,3364.9,3364.8,41.87747]
[1737000410781,0.4477,3365.2,3365.0,0.59443]
[1737000410977,0.4477,3365.2,3365.1,1.04532]
[1737000411373,3.2078,3365.3,3365.2,0.5944]
[1737000411776,3.2078,3365.3,3365.1,0.4509]
[1737000412977,3.2078,3365.3,3365.1,1.6529]
[1737000414281,3.2078,3365.3,3365.1,0.4509]
[1737000414481,3.2078,3365.3,3365.1,1.6529]
[1737000414874,3.2078,3365.3,3365.1,2.24732]
[1737000416186,3.2078,3365.3,3365.1,1.6529]
[1737000416488,3.80219,3365.3,3365.1,1.6529]
[1737000418890,3.2078,3365.3,3365.1,1.6529]
[1737000420591,3.8022,3365.3,3365.1,1.6529]
[1737000421281,0.5944,3365.2,3365.1,1.6529]
[1737000422793,0.5944,3365.2,3365.1,0.4509]
[1737000423477,0.5944,3365.2,3365.0,1.202]
[1737000423478,0.59442,3365.1,3365.0,1.202]
[1737000425787,0.59441,3365.2,3365.0,1.202]
[1737000426192,0.59436,3365.5,3365.1,0.59441]
[1737000426487,4.1126,3365.6,3365.0,1.79643]
[1737000426488,0.59438,3365.4,3365.0,1.79643]
[1737000426792,0.59441,3365.2,3365.1,40.8]
[1737000427290,4.1126,3365.6,3365.1,40.8]
[1737000427591,0.59439,3365.3,3365.1,40.8]
[1737000427891,0.59439,3365.3,3365.0,1.202]
[1737000427892,4.1126,3365.6,3365.0,1.202]
[1737000428187,0.59441,3365.2,3365.0,42.002]
[1737000429779,4.1126,3365.6,3365.0,42.002]
[1737000429986,0.59442,3365.1,3365.0,42.002]
[1737000430381,0.59441,3365.2,3365.0,40.8]
[1737000430592,0.59441,3365.2,3365.0,42.002]
[1737000430788,2.34842089,3365.3,3364.8,0.4725]
[1737000430988,5.59845,3365.6,3364.1,3.2078]
[1737000430989,0.59456,3364.3,3364.1,3.2078]
[1737000431184,1.04058,3364.2,3364.1,44.4671]
[1737000431993,0.446,3364.2,3364.1,44.4671]
[1737000432999,0.59447,3364.9,3364.5,0.59452]
[1737000433297,0.4717,3364.9,3364.6,1.059]
[1737000433492,0.4717,3364.9,3364.7,0.59448]
[1737000433692,3.2078,3365.0,3364.6,0.4645]
[1737000433693,3.2078,3365.0,3364.9,0.59446]
[1737000433892,0.5944,3365.3,3365.0,0.59443]
[1737000434096,1.3749,3365.5,3365.2,3.2078]
[1737000434397,0.4717,3365.5,3365.4,0.59437]
[1737000435101,0.4717,3365.5,3365.4,41.39437]
[1737000435495,0.59431,3365.8,3365.5,0.59435]
[1737000435695,0.59432,3365.7,3365.4,41.39436]
[1737000435900,0.4618,3365.8,3365.4,40.8]
[1737000436094,1.0561,3365.8,3365.5,0.59434]
[1737000436301,0.59432,3365.7,3365.4,0.59436]
[1737000436802,0.4618,3365.8,3365.5,0.59435]
[1737000437201,0.4618,3365.8,3365.7,0.59431]
[1737000438304,0.4618,3365.8,3365.7,41.39431]
[1737000438509,0.4618,3365.8,3365.7,40.8]
[1737000439695,0.4618,3365.8,3365.7,41.39431]
[1737000441304,3.2078,3365.9,3365.8,0.5943]
[1737000442601,3.802,3366.4,3366.1,0.59424]
[1737000442801,1.08349,3366.5,3365.9,0.4725]
[1737000443002,0.59419,3366.5,3366.2,0.59422]
[1737000443202,0.59419,3366.5,3366.0,1.6918]
[1737000443403,0.4585,3366.6,3366.1,0.4689]
[1737000443804,0.4585,3366.6,3366.1,41.2689]
[1737000444105,1.05266,3366.6,3366.3,0.5942]
[1737000444405,0.59418,3366.5,3366.2,0.59422]
[1737000444706,1.05266,3366.6,3366.2,0.59422]
[1737000444907,0.4585,3366.6,3366.1,41.2689]
[1737000445108,0.4585,3366.6,3366.3,0.5942]
[1737000445403,0.4585,3366.6,3366.2,3.2078]
[1737000445902,0.4585,3366.6,3366.3,0.5942]
[1737000446303,0.4585,3366.6,3366.2,3.2078]
[1737000446504,1.05267,3366.6,3366.2,3.80203]
[1737000446702,0.4585,3366.6,3366.2,3.2078]
[1737000446903,0.4585,3366.6,3366.3,0.5942]
[1737000447110,3.2078,3366.8,3366.2,3.2078]
[1737000447310,3.80193,3366.8,3366.4,0.59419]
[1737000447609,3.2078,3366.8,3366.5,1.05156]
[1737000448008,3.80192,3366.8,3366.6,0.4687]
[1737000448610,3.2078,3366.8,3366.6,0.4687]
[1737000449005,0.59411,3366.9,3366.6,1.06285]
[1737000449201,0.9306,3367.0,3366.6,0.4687]
[1737000449202,0.4443,3367.0,3366.6,0.4687]
[1737000449406,0.59406,3367.2,3366.9,0.5941]
[1737000449606,3.80184,3367.3,3367.0,0.59408]
[1737000449802,3.2078,3367.3,3367.1,1.03835]